[Event "Titled Tuesday Blitz June 13 Late 2023"]
[White "Shapiro, Daniel"]
[Black "Shapiro, Viktor"]
[WhiteFideId "2001780"]
[BlackFideId "4175700"]
[WhiteElo "2329"]
[BlackElo "2212"]
[Result "0-1"]
[Round "3"]
[TimeControl "180+2"]
[Date "2023.06.13"]
[WhiteClock "0:00:10"]
[BlackClock "0:01:53"]
[Board "146"]

1. d4 {[%clk 0:03:00]}  Nf6 {[%clk 0:02:59]} 2. c4 {[%clk 0:03:00]}  e6 {[%clk 0:02:59]} 3. g3 {[%clk 0:03:00]}  c5 {[%clk 0:02:58]} 4. Nf3 {[%clk 0:02:59]}  cxd4 {[%clk 0:02:53]} 5. Nxd4 {[%clk 0:02:59]}  Nc6 {[%clk 0:02:54]} 6. Nb3 {[%clk 0:02:57]}  d5 {[%clk 0:02:49]} 7. cxd5 {[%clk 0:02:57]}  Qxd5 {[%clk 0:02:49]} 8. Qxd5 {[%clk 0:02:54]}  Nxd5 {[%clk 0:02:47]} 9. a3 {[%clk 0:02:54]}  b6 {[%clk 0:02:47]} 10. Bg2 {[%clk 0:02:53]}  Bb7 {[%clk 0:02:48]} 11. Bd2 {[%clk 0:02:46]}  Be7 {[%clk 0:02:46]} 12. Nc3 {[%clk 0:02:44]}  Nxc3 {[%clk 0:02:45]} 13. Bxc3 {[%clk 0:02:44]}  O-O {[%clk 0:02:46]} 14. O-O {[%clk 0:02:43]}  Rac8 {[%clk 0:02:45]} 15. Rfd1 {[%clk 0:02:40]}  Rfd8 {[%clk 0:02:34]} 16. Rac1 {[%clk 0:02:38]}  Rxd1+ {[%clk 0:02:32]} 17. Rxd1 {[%clk 0:02:38]}  Rd8 {[%clk 0:02:32]} 18. Rxd8+ {[%clk 0:02:37]}  Nxd8 {[%clk 0:02:33]} 19. Bxb7 {[%clk 0:02:35]}  Nxb7 {[%clk 0:02:33]} 20. Nd4 {[%clk 0:02:11]}  Nd8 {[%clk 0:02:30]} 21. Nb5 {[%clk 0:02:06]}  Nc6 {[%clk 0:02:28]} 22. e3 {[%clk 0:01:50]}  f6 {[%clk 0:02:27]} 23. Kf1 {[%clk 0:01:49]}  e5 {[%clk 0:02:28]} 24. Nc7 {[%clk 0:01:40]}  Kf7 {[%clk 0:02:26]} 25. Ke2 {[%clk 0:01:38]}  Bd8 {[%clk 0:02:25]} 26. Nd5 {[%clk 0:01:34]}  e4 {[%clk 0:02:21]} 27. Nb4 {[%clk 0:01:26]}  Nxb4 {[%clk 0:02:19]} 28. Bxb4 {[%clk 0:01:26]}  Ke6 {[%clk 0:02:19]} 29. f3 {[%clk 0:01:07]}  Kd5 {[%clk 0:02:16]} 30. b3 {[%clk 0:01:05]}  g6 {[%clk 0:02:16]} 31. Bc3 {[%clk 0:01:01]}  f5 {[%clk 0:02:14]} 32. Bg7 {[%clk 0:00:53]}  Be7 {[%clk 0:02:11]} 33. Bb2 {[%clk 0:00:50]}  b5 {[%clk 0:02:09]} 34. f4 {[%clk 0:00:47]}  a5 {[%clk 0:02:06]} 35. h3 {[%clk 0:00:47]}  a4 {[%clk 0:02:06]} 36. bxa4 {[%clk 0:00:39]}  bxa4 {[%clk 0:02:06]} 37. Kd2 {[%clk 0:00:38]}  Kc4 {[%clk 0:02:06]} 38. Kc2 {[%clk 0:00:36]}  Bc5 {[%clk 0:02:06]} 39. Bc1 {[%clk 0:00:36]}  h5 {[%clk 0:02:02]} 40. h4 {[%clk 0:00:29]}  Bd6 {[%clk 0:02:01]} 41. Bb2 {[%clk 0:00:27]}  Be7 {[%clk 0:02:00]} 42. Bc1 {[%clk 0:00:24]}  Bc5 {[%clk 0:02:00]} 43. Bd2 {[%clk 0:00:16]}  Bxa3 {[%clk 0:01:59]} 44. Bc3 {[%clk 0:00:16]}  Bc5 {[%clk 0:01:59]} 45. Bd2 {[%clk 0:00:16]}  a3 {[%clk 0:01:59]} 46. Bc1 {[%clk 0:00:15]}  Be7 {[%clk 0:01:56]} 47. Bd2 {[%clk 0:00:10]}  Bb4 {[%clk 0:01:53]} 0-1


[Site "https://www.chess.com"]

[Event "Titled Tuesday Blitz June 13 Late 2023"]
[White "Ziatdinov, Raset"]
[Black "Yeritsyan, Hayk"]
[WhiteFideId "2015323"]
[BlackFideId "13307320"]
[WhiteElo "2220"]
[BlackElo "2502"]
[Result "0-1"]
[Round "3"]
[TimeControl "180+2"]
[Date "2023.06.13"]
[WhiteClock "0:00:03"]
[BlackClock "0:00:34"]
[Board "147"]

1. e4 {[%clk 0:02:57]}  c6 {[%clk 0:03:00]} 2. d4 {[%clk 0:02:57]}  d5 {[%clk 0:03:00]} 3. Nc3 {[%clk 0:02:58]}  dxe4 {[%clk 0:03:00]} 4. Nxe4 {[%clk 0:02:59]}  Nd7 {[%clk 0:03:01]} 5. Nf3 {[%clk 0:02:58]}  Ngf6 {[%clk 0:03:02]} 6. Nxf6+ {[%clk 0:02:55]}  Nxf6 {[%clk 0:03:02]} 7. c3 {[%clk 0:02:56]}  Bg4 {[%clk 0:03:02]} 8. Bd3 {[%clk 0:02:56]}  Qd6 {[%clk 0:03:02]} 9. h3 {[%clk 0:02:55]}  Bxf3 {[%clk 0:03:01]} 10. Qxf3 {[%clk 0:02:55]}  Qd5 {[%clk 0:03:02]} 11. Qg3 {[%clk 0:02:48]}  e6 {[%clk 0:02:53]} 12. Qg5 {[%clk 0:02:39]}  Qxg5 {[%clk 0:02:46]} 13. Bxg5 {[%clk 0:02:40]}  Be7 {[%clk 0:02:47]} 14. O-O-O {[%clk 0:02:39]}  O-O-O {[%clk 0:02:47]} 15. Rhe1 {[%clk 0:02:39]}  Nd5 {[%clk 0:02:47]} 16. Bd2 {[%clk 0:02:35]}  Bd6 {[%clk 0:02:45]} 17. g3 {[%clk 0:02:34]}  g6 {[%clk 0:02:45]} 18. a3 {[%clk 0:02:34]}  h5 {[%clk 0:02:44]} 19. c4 {[%clk 0:02:34]}  Ne7 {[%clk 0:02:43]} 20. Bc3 {[%clk 0:02:34]}  Rhe8 {[%clk 0:02:42]} 21. Re2 {[%clk 0:02:22]}  Bc7 {[%clk 0:02:41]} 22. Rde1 {[%clk 0:02:21]}  Bb6 {[%clk 0:02:41]} 23. Re4 {[%clk 0:01:55]}  Nf5 {[%clk 0:02:40]} 24. c5 {[%clk 0:01:37]}  Bxc5 {[%clk 0:02:36]} 25. dxc5 {[%clk 0:01:32]}  Rxd3 {[%clk 0:02:35]} 26. g4 {[%clk 0:01:29]}  Ne7 {[%clk 0:02:17]} 27. Kc2 {[%clk 0:01:29]}  Rd5 {[%clk 0:02:14]} 28. b4 {[%clk 0:01:24]}  Red8 {[%clk 0:02:13]} 29. R1e2 {[%clk 0:01:20]}  a6 {[%clk 0:02:01]} 30. f4 {[%clk 0:01:14]}  R8d7 {[%clk 0:01:46]} 31. Kb3 {[%clk 0:00:55]}  a5 {[%clk 0:01:44]} 32. Ka4 {[%clk 0:00:54]}  axb4 {[%clk 0:01:45]} 33. axb4 {[%clk 0:00:54]}  Rd3 {[%clk 0:01:43]} 34. R2e3 {[%clk 0:00:48]}  Rxe3 {[%clk 0:01:41]} 35. Rxe3 {[%clk 0:00:48]}  Nd5 {[%clk 0:01:41]} 36. Rf3 {[%clk 0:00:43]}  hxg4 {[%clk 0:01:33]} 37. hxg4 {[%clk 0:00:43]}  Nxc3+ {[%clk 0:01:33]} 38. Rxc3 {[%clk 0:00:43]}  Rd4 {[%clk 0:01:33]} 39. Rf3 {[%clk 0:00:42]}  Kc7 {[%clk 0:01:27]} 40. Kb3 {[%clk 0:00:43]}  Kd7 {[%clk 0:01:26]} 41. Kc3 {[%clk 0:00:43]}  Re4 {[%clk 0:01:27]} 42. Rd3+ {[%clk 0:00:43]}  Ke7 {[%clk 0:01:27]} 43. Rf3 {[%clk 0:00:42]}  g5 {[%clk 0:01:27]} 44. fxg5 {[%clk 0:00:20]}  Rxg4 {[%clk 0:01:26]} 45. Rf1 {[%clk 0:00:21]}  Rxg5 {[%clk 0:01:26]} 46. Ra1 {[%clk 0:00:22]}  Kd7 {[%clk 0:01:25]} 47. Ra7 {[%clk 0:00:22]}  Kc7 {[%clk 0:01:24]} 48. Ra8 {[%clk 0:00:22]}  Rg3+ {[%clk 0:01:19]} 49. Kc4 {[%clk 0:00:21]}  Rg4+ {[%clk 0:01:18]} 50. Kc3 {[%clk 0:00:21]}  Rg7 {[%clk 0:01:14]} 51. Rf8 {[%clk 0:00:21]}  b6 {[%clk 0:01:01]} 52. Kc4 {[%clk 0:00:20]}  bxc5 {[%clk 0:00:59]} 53. bxc5 {[%clk 0:00:21]}  Kd7 {[%clk 0:00:55]} 54. Kb4 {[%clk 0:00:18]}  e5 {[%clk 0:00:50]} 55. Ka5 {[%clk 0:00:17]}  e4 {[%clk 0:00:42]} 56. Kb6 {[%clk 0:00:18]}  e3 {[%clk 0:00:42]} 57. Ra8 {[%clk 0:00:14]}  e2 {[%clk 0:00:40]} 58. Ra7+ {[%clk 0:00:14]}  Ke6 {[%clk 0:00:40]} 59. Ra1 {[%clk 0:00:13]}  Rg2 {[%clk 0:00:40]} 60. Kxc6 {[%clk 0:00:10]}  f5 {[%clk 0:00:41]} 61. Kb7 {[%clk 0:00:09]}  f4 {[%clk 0:00:41]} 62. c6 {[%clk 0:00:10]}  f3 {[%clk 0:00:41]} 63. c7 {[%clk 0:00:10]}  Rg7 {[%clk 0:00:41]} 64. Ra3 {[%clk 0:00:03]}  e1=Q {[%clk 0:00:37]} 65. Rxf3 {[%clk 0:00:03]}  Qe4+ {[%clk 0:00:34]} 0-1


[Site "https://www.chess.com"]

[Event "Titled Tuesday Blitz June 13 Late 2023"]
[White "Burdalev, Kirill"]
[Black "Flynn, Jacob"]
[WhiteFideId "14121913"]
[BlackFideId "2509393"]
[WhiteElo "2236"]
[BlackElo "2053"]
[Result "1-0"]
[Round "3"]
[TimeControl "180+2"]
[Date "2023.06.13"]
[WhiteClock "0:02:12"]
[BlackClock "0:01:08"]
[Board "148"]

1. d4 {[%clk 0:03:00]}  Nf6 {[%clk 0:02:42]} 2. c4 {[%clk 0:02:59]}  g6 {[%clk 0:02:42]} 3. Nf3 {[%clk 0:02:58]}  Bg7 {[%clk 0:02:43]} 4. Nc3 {[%clk 0:02:58]}  O-O {[%clk 0:02:43]} 5. e4 {[%clk 0:02:57]}  d6 {[%clk 0:02:44]} 6. Be2 {[%clk 0:02:57]}  e5 {[%clk 0:02:44]} 7. Be3 {[%clk 0:02:57]}  exd4 {[%clk 0:02:38]} 8. Nxd4 {[%clk 0:02:56]}  Re8 {[%clk 0:02:39]} 9. f3 {[%clk 0:02:56]}  c6 {[%clk 0:02:39]} 10. Bf2 {[%clk 0:02:51]}  d5 {[%clk 0:02:36]} 11. exd5 {[%clk 0:02:47]}  cxd5 {[%clk 0:02:37]} 12. O-O {[%clk 0:02:46]}  Nc6 {[%clk 0:02:34]} 13. c5 {[%clk 0:02:46]}  Nh5 {[%clk 0:02:32]} 14. Qd2 {[%clk 0:02:45]}  Be5 {[%clk 0:02:07]} 15. g3 {[%clk 0:02:44]}  Ng7 {[%clk 0:01:45]} 16. Rfe1 {[%clk 0:02:32]}  Be6 {[%clk 0:01:44]} 17. Rad1 {[%clk 0:02:28]}  Bxd4 {[%clk 0:01:34]} 18. Bxd4 {[%clk 0:02:28]}  Nxd4 {[%clk 0:01:35]} 19. Qxd4 {[%clk 0:02:28]}  Nf5 {[%clk 0:01:36]} 20. Qf2 {[%clk 0:02:25]}  d4 {[%clk 0:01:35]} 21. g4 {[%clk 0:02:20]}  Ne3 {[%clk 0:01:29]} 22. Ne4 {[%clk 0:02:11]}  Nxd1 {[%clk 0:01:25]} 23. Rxd1 {[%clk 0:02:12]}  Qf6 {[%clk 0:01:08]} 24. Nxf6+ {[%clk 0:02:12]} 1-0


[Site "https://www.chess.com"]

[Event "Titled Tuesday Blitz June 13 Late 2023"]
[White "Ronka, Erik"]
[Black "Ward, Ieuan C"]
[WhiteFideId "505080"]
[BlackFideId "406627"]
[WhiteElo "2264"]
[BlackElo "2290"]
[Result "1-0"]
[Round "3"]
[TimeControl "180+2"]
[Date "2023.06.13"]
[WhiteClock "0:00:06"]
[BlackClock "0:00:00"]
[Board "149"]

1. e4 {[%clk 0:03:00]}  e5 {[%clk 0:02:59]} 2. Nf3 {[%clk 0:02:59]}  Nc6 {[%clk 0:02:59]} 3. Bb5 {[%clk 0:02:59]}  a6 {[%clk 0:02:58]} 4. Ba4 {[%clk 0:02:59]}  Nf6 {[%clk 0:02:58]} 5. O-O {[%clk 0:02:58]}  b5 {[%clk 0:02:58]} 6. Bb3 {[%clk 0:02:58]}  Be7 {[%clk 0:02:59]} 7. Re1 {[%clk 0:02:54]}  O-O {[%clk 0:02:59]} 8. h3 {[%clk 0:02:39]}  d6 {[%clk 0:02:55]} 9. c3 {[%clk 0:02:38]}  Na5 {[%clk 0:02:54]} 10. Bc2 {[%clk 0:02:38]}  c5 {[%clk 0:02:54]} 11. d4 {[%clk 0:02:38]}  cxd4 {[%clk 0:02:53]} 12. cxd4 {[%clk 0:02:38]}  Nc6 {[%clk 0:02:39]} 13. d5 {[%clk 0:01:53]}  Nb4 {[%clk 0:02:30]} 14. Bb3 {[%clk 0:01:54]}  a5 {[%clk 0:02:29]} 15. a3 {[%clk 0:01:54]}  Na6 {[%clk 0:02:21]} 16. Nc3 {[%clk 0:01:54]}  Bd7 {[%clk 0:02:15]} 17. Be3 {[%clk 0:01:46]}  Qb8 {[%clk 0:01:59]} 18. Bc2 {[%clk 0:01:39]}  Rc8 {[%clk 0:01:51]} 19. g4 {[%clk 0:01:18]}  g6 {[%clk 0:01:32]} 20. Ne2 {[%clk 0:01:08]}  Nc5 {[%clk 0:01:26]} 21. Ng3 {[%clk 0:01:06]}  b4 {[%clk 0:01:14]} 22. axb4 {[%clk 0:01:03]}  Qxb4 {[%clk 0:01:08]} 23. Rb1 {[%clk 0:00:55]}  a4 {[%clk 0:00:52]} 24. g5 {[%clk 0:00:34]}  Ne8 {[%clk 0:00:52]} 25. Kg2 {[%clk 0:00:34]}  Ng7 {[%clk 0:00:41]} 26. Nh2 {[%clk 0:00:30]}  Qc4 {[%clk 0:00:24]} 27. Ng4 {[%clk 0:00:20]}  Kf8 {[%clk 0:00:22]} 28. Nh6 {[%clk 0:00:20]}  Nb3 {[%clk 0:00:20]} 29. Qf3 {[%clk 0:00:19]}  Be8 {[%clk 0:00:18]} 30. Bd1 {[%clk 0:00:18]}  Nd4 {[%clk 0:00:17]} 31. Bxd4 {[%clk 0:00:16]}  Qxd4 {[%clk 0:00:17]} 32. h4 {[%clk 0:00:14]}  Rab8 {[%clk 0:00:15]} 33. h5 {[%clk 0:00:12]}  Rb3 {[%clk 0:00:14]} 34. Re3 {[%clk 0:00:11]}  Rxb2 {[%clk 0:00:11]} 35. Rxb2 {[%clk 0:00:11]}  Qxb2 {[%clk 0:00:11]} 36. hxg6 {[%clk 0:00:11]}  hxg6 {[%clk 0:00:10]} 37. Qg4 {[%clk 0:00:08]}  Rc1 {[%clk 0:00:05]} 38. Be2 {[%clk 0:00:07]}  a3 {[%clk 0:00:00]} 39. Qh4 {[%clk 0:00:06]} 1-0


[Site "https://www.chess.com"]

[Event "Titled Tuesday Blitz June 13 Late 2023"]
[White "Seletsky, Grigory"]
[Black "Sala, Giulia"]
[WhiteFideId "14112191"]
[BlackFideId "2840451"]
[WhiteElo "2491"]
[BlackElo "1769"]
[Result "0-1"]
[Round "3"]
[TimeControl "180+2"]
[Date "2023.06.13"]
[WhiteClock "0:00:15"]
[BlackClock "0:00:30"]
[Board "151"]

1. e4 {[%clk 0:02:57]}  e6 {[%clk 0:02:58]} 2. d4 {[%clk 0:02:54]}  d5 {[%clk 0:02:59]} 3. exd5 {[%clk 0:02:54]}  exd5 {[%clk 0:02:59]} 4. c3 {[%clk 0:02:54]}  Bd6 {[%clk 0:02:59]} 5. Bd3 {[%clk 0:02:52]}  Ne7 {[%clk 0:02:59]} 6. Qc2 {[%clk 0:02:52]}  Nbc6 {[%clk 0:02:58]} 7. Bg5 {[%clk 0:02:52]}  f6 {[%clk 0:02:58]} 8. Bh4 {[%clk 0:02:51]}  Bg4 {[%clk 0:02:57]} 9. Nd2 {[%clk 0:02:42]}  Qd7 {[%clk 0:02:57]} 10. f3 {[%clk 0:02:42]}  Bh5 {[%clk 0:02:56]} 11. O-O-O {[%clk 0:02:38]}  Bg6 {[%clk 0:02:50]} 12. Ne2 {[%clk 0:02:37]}  O-O-O {[%clk 0:02:48]} 13. Bg3 {[%clk 0:02:34]}  Kb8 {[%clk 0:02:46]} 14. Kb1 {[%clk 0:02:33]}  Nf5 {[%clk 0:02:42]} 15. Bf2 {[%clk 0:02:31]}  Rhe8 {[%clk 0:02:39]} 16. Nf1 {[%clk 0:02:27]}  Re7 {[%clk 0:02:27]} 17. h4 {[%clk 0:02:27]}  Rde8 {[%clk 0:02:13]} 18. Nc1 {[%clk 0:02:23]}  Nh6 {[%clk 0:01:37]} 19. Bxg6 {[%clk 0:02:20]}  hxg6 {[%clk 0:01:38]} 20. Qxg6 {[%clk 0:02:19]}  Bf4 {[%clk 0:01:34]} 21. Nd3 {[%clk 0:01:27]}  Re2 {[%clk 0:01:30]} 22. g4 {[%clk 0:01:19]}  Na5 {[%clk 0:01:20]} 23. Ng3 {[%clk 0:00:50]}  Bxg3 {[%clk 0:01:16]} 24. Bxg3 {[%clk 0:00:49]}  Qa4 {[%clk 0:01:13]} 25. Rc1 {[%clk 0:00:33]}  Nc4 {[%clk 0:01:03]} 26. Bf4 {[%clk 0:00:28]}  Qb5 {[%clk 0:00:45]} 27. b3 {[%clk 0:00:28]}  Qa5 {[%clk 0:00:38]} 28. Nb4 {[%clk 0:00:26]}  Rb2+ {[%clk 0:00:37]} 29. Ka1 {[%clk 0:00:25]}  Ree2 {[%clk 0:00:33]} 30. a4 {[%clk 0:00:20]}  Rxb3 {[%clk 0:00:30]} 31. Na2 {[%clk 0:00:18]}  Rxa2+ {[%clk 0:00:29]} 32. Kxa2 {[%clk 0:00:15]}  Qxa4# {[%clk 0:00:30]} 0-1


[Site "https://www.chess.com"]

[Event "Titled Tuesday Blitz June 13 Late 2023"]
[White "Kovalevsky, Stanislav"]
[Black "DampFalcon"]
[WhiteFideId "13508598"]
[WhiteElo "2112"]
[BlackElo "1905"]
[Result "0-1"]
[Round "3"]
[TimeControl "180+2"]
[Date "2023.06.13"]
[WhiteClock "0:00:00"]
[BlackClock "0:00:38"]
[Board "153"]

1. c4 {[%clk 0:03:00]}  Nf6 {[%clk 0:02:59]} 2. Nc3 {[%clk 0:03:01]}  e6 {[%clk 0:02:59]} 3. e4 {[%clk 0:03:01]}  Bb4 {[%clk 0:02:50]} 4. e5 {[%clk 0:02:59]}  Ng8 {[%clk 0:02:48]} 5. d4 {[%clk 0:02:58]}  Ne7 {[%clk 0:02:47]} 6. Bd3 {[%clk 0:02:56]}  d6 {[%clk 0:02:46]} 7. Nf3 {[%clk 0:02:50]}  dxe5 {[%clk 0:02:46]} 8. dxe5 {[%clk 0:02:45]}  Nbc6 {[%clk 0:02:40]} 9. Bg5 {[%clk 0:02:42]}  h6 {[%clk 0:02:39]} 10. Bh4 {[%clk 0:02:41]}  g5 {[%clk 0:02:34]} 11. Bg3 {[%clk 0:02:40]}  Nd4 {[%clk 0:02:31]} 12. Qa4+ {[%clk 0:02:28]}  Nec6 {[%clk 0:02:21]} 13. O-O-O {[%clk 0:02:27]}  Nxf3 {[%clk 0:02:12]} 14. gxf3 {[%clk 0:02:22]}  Bd7 {[%clk 0:02:11]} 15. Be4 {[%clk 0:02:12]}  Bxc3 {[%clk 0:01:57]} 16. bxc3 {[%clk 0:02:06]}  Qe7 {[%clk 0:01:53]} 17. Qc2 {[%clk 0:01:26]}  O-O-O {[%clk 0:01:43]} 18. h4 {[%clk 0:01:22]}  Qa3+ {[%clk 0:01:36]} 19. Kb1 {[%clk 0:01:19]}  Qc5 {[%clk 0:01:35]} 20. hxg5 {[%clk 0:00:50]}  hxg5 {[%clk 0:01:35]} 21. Rxh8 {[%clk 0:00:50]}  Rxh8 {[%clk 0:01:36]} 22. Qd2 {[%clk 0:00:50]}  Rd8 {[%clk 0:01:21]} 23. Qxg5 {[%clk 0:00:50]}  Qxc4 {[%clk 0:01:20]} 24. Bxc6 {[%clk 0:00:26]}  Qxc6 {[%clk 0:01:18]} 25. Qe3 {[%clk 0:00:25]}  Qb5+ {[%clk 0:01:12]} 26. Ka1 {[%clk 0:00:23]}  b6 {[%clk 0:01:10]} 27. Qd4 {[%clk 0:00:18]}  Rg8 {[%clk 0:00:54]} 28. c4 {[%clk 0:00:08]}  Qa4 {[%clk 0:00:52]} 29. c5 {[%clk 0:00:07]}  Kb7 {[%clk 0:00:49]} 30. Qxd7 {[%clk 0:00:05]}  Qc4 {[%clk 0:00:46]} 31. c6+ {[%clk 0:00:05]}  Qxc6 {[%clk 0:00:38]} 32. Qxc6+ {[%clk 0:00:05]}  Kxc6 {[%clk 0:00:39]} 33. Kb2 {[%clk 0:00:06]}  Rh8 {[%clk 0:00:38]} 34. Rc1+ {[%clk 0:00:05]}  Kb7 {[%clk 0:00:38]} 35. Kc3 {[%clk 0:00:06]}  c5 {[%clk 0:00:38]} 36. Kd3 {[%clk 0:00:05]}  Kc6 {[%clk 0:00:38]} 37. Ke4 {[%clk 0:00:05]}  Rd8 {[%clk 0:00:38]} 38. Rc4 {[%clk 0:00:04]}  Rd2 {[%clk 0:00:37]} 39. a4 {[%clk 0:00:04]}  a6 {[%clk 0:00:38]} 40. f4 {[%clk 0:00:03]}  b5 {[%clk 0:00:38]} 41. axb5+ {[%clk 0:00:04]}  axb5 {[%clk 0:00:39]} 42. Rc1 {[%clk 0:00:04]}  Rd4+ {[%clk 0:00:39]} 43. Ke3 {[%clk 0:00:04]}  Ra4 {[%clk 0:00:38]} 44. f3 {[%clk 0:00:04]}  b4 {[%clk 0:00:38]} 45. Kd3 {[%clk 0:00:03]}  Ra3+ {[%clk 0:00:39]} 46. Ke2 {[%clk 0:00:03]}  b3 {[%clk 0:00:38]} 47. Bf2 {[%clk 0:00:03]}  Ra2+ {[%clk 0:00:38]} 48. Ke1 {[%clk 0:00:02]}  b2 {[%clk 0:00:38]} 49. Rxc5+ {[%clk 0:00:02]}  Kd7 {[%clk 0:00:35]} 50. Rb5 {[%clk 0:00:02]}  Ra1+ {[%clk 0:00:36]} 51. Kd2 {[%clk 0:00:02]}  b1=Q {[%clk 0:00:36]} 52. Rxb1 {[%clk 0:00:02]}  Rxb1 {[%clk 0:00:37]} 53. Be3 {[%clk 0:00:03]}  Kc6 {[%clk 0:00:37]} 54. Kd3 {[%clk 0:00:03]}  Kd5 {[%clk 0:00:37]} 55. Bd2 {[%clk 0:00:03]}  Rb3+ {[%clk 0:00:37]} 56. Bc3 {[%clk 0:00:03]}  Ra3 {[%clk 0:00:38]} 57. Kc2 {[%clk 0:00:00]}  Kc4 {[%clk 0:00:38]} 0-1


[Site "https://www.chess.com"]

[Event "Titled Tuesday Blitz June 13 Late 2023"]
[White "The_Straightforward_Rook"]
[Black "Chen, Ryo"]
[BlackFideId "7003072"]
[WhiteElo "2340"]
[BlackElo "2169"]
[Result "1-0"]
[Round "3"]
[TimeControl "180+2"]
[Date "2023.06.13"]
[WhiteClock "0:00:46"]
[BlackClock "0:00:16"]
[Board "156"]

1. d4 {[%clk 0:02:55]}  Nf6 {[%clk 0:02:59]} 2. c4 {[%clk 0:02:55]}  g6 {[%clk 0:02:59]} 3. Nc3 {[%clk 0:02:55]}  Bg7 {[%clk 0:02:59]} 4. e4 {[%clk 0:02:55]}  d6 {[%clk 0:02:57]} 5. Be2 {[%clk 0:02:54]}  O-O {[%clk 0:02:57]} 6. h4 {[%clk 0:02:54]}  c5 {[%clk 0:02:50]} 7. d5 {[%clk 0:02:52]}  e6 {[%clk 0:02:48]} 8. h5 {[%clk 0:02:53]}  exd5 {[%clk 0:02:49]} 9. exd5 {[%clk 0:02:54]}  Re8 {[%clk 0:02:44]} 10. h6 {[%clk 0:02:54]}  Bh8 {[%clk 0:02:40]} 11. Bg5 {[%clk 0:02:54]}  Qb6 {[%clk 0:02:36]} 12. b3 {[%clk 0:02:53]}  Bf5 {[%clk 0:02:28]} 13. Kf1 {[%clk 0:02:48]}  Nbd7 {[%clk 0:02:19]} 14. Rc1 {[%clk 0:02:43]}  Ne5 {[%clk 0:02:05]} 15. g3 {[%clk 0:02:34]}  Ne4 {[%clk 0:01:53]} 16. Nxe4 {[%clk 0:02:32]}  Bxe4 {[%clk 0:01:54]} 17. Rh4 {[%clk 0:02:32]}  Bf5 {[%clk 0:01:44]} 18. Nf3 {[%clk 0:02:29]}  Nxf3 {[%clk 0:01:37]} 19. Bxf3 {[%clk 0:02:30]}  Qa5 {[%clk 0:01:32]} 20. a4 {[%clk 0:02:22]}  Bb2 {[%clk 0:01:17]} 21. Bd2 {[%clk 0:02:18]}  Qd8 {[%clk 0:01:12]} 22. Bc3 {[%clk 0:02:16]}  Bxc3 {[%clk 0:01:09]} 23. Rxc3 {[%clk 0:02:16]}  Qf6 {[%clk 0:01:09]} 24. Qd2 {[%clk 0:02:09]}  Bd7 {[%clk 0:01:07]} 25. Kg2 {[%clk 0:02:03]}  Re7 {[%clk 0:01:06]} 26. Re4 {[%clk 0:01:58]}  Rae8 {[%clk 0:01:04]} 27. Rxe7 {[%clk 0:01:52]}  Rxe7 {[%clk 0:01:05]} 28. Re3 {[%clk 0:01:52]}  Re5 {[%clk 0:00:54]} 29. Rxe5 {[%clk 0:01:37]}  Qxe5 {[%clk 0:00:52]} 30. Qa5 {[%clk 0:01:37]}  Qg5 {[%clk 0:00:25]} 31. Qc7 {[%clk 0:01:29]}  Be8 {[%clk 0:00:22]} 32. Qxd6 {[%clk 0:01:11]}  Qxh6 {[%clk 0:00:23]} 33. Qb8 {[%clk 0:01:03]}  Qf8 {[%clk 0:00:20]} 34. Qxb7 {[%clk 0:01:00]}  h5 {[%clk 0:00:19]} 35. d6 {[%clk 0:00:58]}  Qxd6 {[%clk 0:00:19]} 36. Qxa7 {[%clk 0:00:51]}  Bd7 {[%clk 0:00:19]} 37. Qa8+ {[%clk 0:00:49]}  Kg7 {[%clk 0:00:19]} 38. Qd5 {[%clk 0:00:50]}  Qe7 {[%clk 0:00:19]} 39. a5 {[%clk 0:00:48]}  Be6 {[%clk 0:00:20]} 40. Qe5+ {[%clk 0:00:47]}  f6 {[%clk 0:00:20]} 41. Qb8 {[%clk 0:00:45]}  g5 {[%clk 0:00:20]} 42. Qb7 {[%clk 0:00:45]}  Qxb7 {[%clk 0:00:16]} 43. Bxb7 {[%clk 0:00:46]} 1-0


[Site "https://www.chess.com"]